[Event "*** Titled Tuesday Blitz"]
[Site "Chess.com"]
[Date "2021.02.09"]
[Round "2"]
[White "hansen"]
[Black "Natalya_Buksa"]
[Result "1-0"]
[WhiteElo "2952"]
[BlackElo "2563"]
[TimeControl "180+1"]
[EndTime "10:17:49 PST"]
[Termination "hansen won by checkmate"]

1. e4 {[%clk 0:02:53.5]} 1... c5 {[%clk 0:02:56.4]} 2. Nf3 {[%clk 0:02:52.7]}
2... Nc6 {[%clk 0:02:56.6]} 3. Bb5 {[%clk 0:02:52.8]} 3... g6 {[%clk 0:02:56.4]}
4. O-O {[%clk 0:02:52.6]} 4... Bg7 {[%clk 0:02:56.5]} 5. Re1 {[%clk 0:02:50.9]}
5... e5 {[%clk 0:02:56.5]} 6. Bxc6 {[%clk 0:02:29.4]} 6... dxc6 {[%clk
0:02:55.9]} 7. d3 {[%clk 0:02:28.1]} 7... Qe7 {[%clk 0:02:54.7]} 8. a3 {[%clk
0:02:28.3]} 8... Nf6 {[%clk 0:02:54.4]} 9. b4 {[%clk 0:02:28.4]} 9... Nd7 {[%clk
0:02:50.6]} 10. Be3 {[%clk 0:02:24.8]} 10... cxb4 {[%clk 0:02:45.5]} 11. axb4
{[%clk 0:02:25]} 11... Qxb4 {[%clk 0:02:44.8]} 12. Nbd2 {[%clk 0:02:21.5]} 12...
O-O {[%clk 0:02:43.7]} 13. Nc4 {[%clk 0:02:12.8]} 13... Re8 {[%clk 0:02:33.9]}
14. c3 {[%clk 0:01:51.2]} 14... Qxc3 {[%clk 0:02:10.6]} 15. Qb1 {[%clk
0:01:51.5]} 15... Bf8 {[%clk 0:00:56.4]} 16. Bd2 {[%clk 0:01:51.2]} 16... Qxa1
{[%clk 0:00:56.1]} 17. Qxa1 {[%clk 0:01:51.3]} 17... f6 {[%clk 0:00:53.9]} 18.
d4 {[%clk 0:01:38.6]} 18... exd4 {[%clk 0:00:48.5]} 19. Qxd4 {[%clk 0:01:35.9]}
19... Nc5 {[%clk 0:00:36.1]} 20. Bc3 {[%clk 0:01:18.4]} 20... Be7 {[%clk
0:00:17.9]} 21. e5 {[%clk 0:01:10.2]} 21... Rd8 {[%clk 0:00:14.5]} 22. Qh4
{[%clk 0:01:08.2]} 22... Nd3 {[%clk 0:00:06.4]} 23. exf6 {[%clk 0:01:04.1]}
23... Nxe1 {[%clk 0:00:06.6]} 24. fxe7 {[%clk 0:00:58.8]} 24... Nxf3+ {[%clk
0:00:07.1]} 25. gxf3 {[%clk 0:00:58.6]} 25... Rd1+ {[%clk 0:00:07.3]} 26. Kg2
{[%clk 0:00:59]} 26... Bh3+ {[%clk 0:00:03.5]} 27. Qxh3 {[%clk 0:00:51.2]} 27...
Kf7 {[%clk 0:00:02.1]} 28. Qxh7+ {[%clk 0:00:46.5]} 28... Ke6 {[%clk 0:00:02.4]}
29. Qxg6+ {[%clk 0:00:45.1]} 29... Kxe7 {[%clk 0:00:02.9]} 30. Bb4+ {[%clk
0:00:38]} 30... Kd7 {[%clk 0:00:02.8]} 31. Qf7+ {[%clk 0:00:37.7]} 31... Kc8
{[%clk 0:00:02.3]} 32. Nd6+ {[%clk 0:00:37.7]} 32... Kd8 {[%clk 0:00:02]} 33.
Nxb7+ {[%clk 0:00:35.9]} 33... Kc8 {[%clk 0:00:02.1]} 34. Nd6+ {[%clk
0:00:36.5]} 34... Kd8 {[%clk 0:00:02.5]} 35. Ba5# {[%clk 0:00:37]} 1-0

[Event "*** Titled Tuesday Blitz"]
[Site "Chess.com"]
[Date "2021.02.09"]
[Round "2"]
[White "sopo-tereladze"]
[Black "chenxiaoyuer"]
[Result "1/2-1/2"]
[WhiteElo "2296"]
[BlackElo "2502"]
[TimeControl "180+1"]
[EndTime "10:17:52 PST"]
[Termination "Game drawn by repetition"]

1. d4 {[%clk 0:03:00.9]} 1... Nf6 {[%clk 0:02:59.8]} 2. Nf3 {[%clk 0:03:01.8]}
2... g6 {[%clk 0:02:58.8]} 3. Nc3 {[%clk 0:02:59.1]} 3... d5 {[%clk 0:02:55.9]}
4. Bg5 {[%clk 0:02:58.6]} 4... Bg7 {[%clk 0:02:54.9]} 5. Bxf6 {[%clk 0:02:55.5]}
5... exf6 {[%clk 0:02:45.5]} 6. e4 {[%clk 0:02:56.4]} 6... dxe4 {[%clk
0:02:40.2]} 7. Nxe4 {[%clk 0:02:57.3]} 7... O-O {[%clk 0:02:37.5]} 8. Be2 {[%clk
0:02:54.8]} 8... f5 {[%clk 0:02:34]} 9. Ng3 {[%clk 0:02:52.2]} 9... Re8 {[%clk
0:02:21.4]} 10. Qd2 {[%clk 0:02:44.4]} 10... Qd6 {[%clk 0:02:12.2]} 11. O-O-O
{[%clk 0:02:32]} 11... Nc6 {[%clk 0:02:07.2]} 12. c3 {[%clk 0:02:29.7]} 12...
Rb8 {[%clk 0:01:38.7]} 13. h4 {[%clk 0:02:12.2]} 13... b5 {[%clk 0:01:19.2]} 14.
h5 {[%clk 0:02:11.5]} 14... f4 {[%clk 0:01:12.7]} 15. Nf1 {[%clk 0:01:52.2]}
15... b4 {[%clk 0:01:10.2]} 16. hxg6 {[%clk 0:01:47.2]} 16... hxg6 {[%clk
0:01:09.5]} 17. c4 {[%clk 0:01:41.9]} 17... Nxd4 {[%clk 0:00:49.5]} 18. Nxd4
{[%clk 0:01:40.8]} 18... Qxd4 {[%clk 0:00:47.6]} 19. Qxd4 {[%clk 0:01:27.4]}
19... Bxd4 {[%clk 0:00:48.5]} 20. Rxd4 {[%clk 0:01:27.4]} 20... Rxe2 {[%clk
0:00:47.2]} 21. Rd8+ {[%clk 0:01:27.6]} 21... Kg7 {[%clk 0:00:47.4]} 22. Nd2
{[%clk 0:01:25.9]} 22... Rxf2 {[%clk 0:00:38.7]} 23. Rhh8 {[%clk 0:01:22.9]}
23... Rxg2 {[%clk 0:00:30.4]} 24. Ne4 {[%clk 0:01:05]} 24... f5 {[%clk
0:00:16.6]} 25. Rhg8+ {[%clk 0:00:46.6]} 25... Kf7 {[%clk 0:00:14.8]} 26. Rgf8+
{[%clk 0:00:45.1]} 26... Ke7 {[%clk 0:00:14.9]} 27. Rfe8+ {[%clk 0:00:24.8]}
27... Kf7 {[%clk 0:00:14.6]} 28. Rf8+ {[%clk 0:00:24.4]} 28... Ke6 {[%clk
0:00:08.9]} 29. Rfe8+ {[%clk 0:00:19.4]} 29... Kf7 {[%clk 0:00:08.3]} 30. Rf8+
{[%clk 0:00:18.1]} 1/2-1/2

[Event "*** Titled Tuesday Blitz"]
[Site "Chess.com"]
[Date "2021.02.09"]
[Round "2"]
[White "GMBenjaminBok"]
[Black "FMJoseHerrera"]
[Result "0-1"]
[WhiteElo "2998"]
[BlackElo "2594"]
[TimeControl "180+1"]
[EndTime "10:17:53 PST"]
[Termination "FMJoseHerrera won by checkmate"]

1. d4 {[%clk 0:03:00.9]} 1... Nf6 {[%clk 0:02:57.2]} 2. c4 {[%clk 0:03:00.8]}
2... c5 {[%clk 0:02:56.9]} 3. Nf3 {[%clk 0:02:59.9]} 3... g6 {[%clk 0:02:53.5]}
4. g3 {[%clk 0:02:55.6]} 4... Bg7 {[%clk 0:02:53.3]} 5. Bg2 {[%clk 0:02:55]}
5... cxd4 {[%clk 0:02:53.4]} 6. Nxd4 {[%clk 0:02:54.9]} 6... h5 {[%clk
0:02:53.8]} 7. Nc3 {[%clk 0:02:30.5]} 7... h4 {[%clk 0:02:53.2]} 8. Bg5 {[%clk
0:02:30.3]} 8... hxg3 {[%clk 0:02:51]} 9. hxg3 {[%clk 0:02:30.6]} 9... Rxh1+
{[%clk 0:02:51.6]} 10. Bxh1 {[%clk 0:02:31.5]} 10... Nc6 {[%clk 0:02:51.6]} 11.
Qd2 {[%clk 0:02:21.8]} 11... Qa5 {[%clk 0:02:39.2]} 12. Nb3 {[%clk 0:02:05.1]}
12... Qf5 {[%clk 0:02:30]} 13. Nb5 {[%clk 0:01:08.1]} 13... Kf8 {[%clk
0:02:27.7]} 14. Nc7 {[%clk 0:00:27.8]} 14... Rb8 {[%clk 0:02:26.5]} 15. Nd5
{[%clk 0:00:25.7]} 15... Ne4 {[%clk 0:02:03.6]} 16. Bxe4 {[%clk 0:00:19.6]}
16... Qxe4 {[%clk 0:02:04.5]} 17. O-O-O {[%clk 0:00:14.9]} 17... Qxc4+ {[%clk
0:02:00.5]} 18. Kb1 {[%clk 0:00:15.1]} 18... d6 {[%clk 0:01:23.1]} 19. Nxe7
{[%clk 0:00:12.7]} 19... Qe4+ {[%clk 0:01:21.9]} 20. Ka1 {[%clk 0:00:12.1]}
20... Nb4 {[%clk 0:00:50]} 21. Rc1 {[%clk 0:00:11.2]} 21... Nxa2 {[%clk
0:00:34.9]} 22. Rxc8+ {[%clk 0:00:08.3]} 22... Rxc8 {[%clk 0:00:34.9]} 23. Nxc8
{[%clk 0:00:09.2]} 23... Qa4 {[%clk 0:00:28.3]} 24. Qxd6+ {[%clk 0:00:06]} 24...
Kg8 {[%clk 0:00:28.6]} 25. Ne7+ {[%clk 0:00:04.1]} 25... Kh7 {[%clk 0:00:28.2]}
26. Kb1 {[%clk 0:00:02.6]} 26... Qxb3 {[%clk 0:00:27.6]} 27. Bf6 {[%clk
0:00:02.7]} 27... Nb4 {[%clk 0:00:20.5]} 28. Qd2 {[%clk 0:00:01.8]} 28... Bxf6
{[%clk 0:00:19.9]} 29. Nc8 {[%clk 0:00:02.1]} 29... Qa2+ {[%clk 0:00:19.9]} 30.
Kc1 {[%clk 0:00:01.6]} 30... Qa1# {[%clk 0:00:20.8]} 0-1

[Event "*** Titled Tuesday Blitz"]
[Site "Chess.com"]
[Date "2021.02.09"]
[Round "2"]
[White "AttackSparrow"]
[Black "OlifantCZ"]
[Result "1-0"]
[WhiteElo "2462"]
[BlackElo "2248"]
[TimeControl "180+1"]
[EndTime "10:17:54 PST"]
[Termination "AttackSparrow won by resignation"]

1. e4 {[%clk 0:03:00.9]} 1... e6 {[%clk 0:02:59.7]} 2. d4 {[%clk 0:03:00.6]}
2... d5 {[%clk 0:03:00]} 3. Bd3 {[%clk 0:02:59.6]} 3... dxe4 {[%clk 0:02:59.2]}
4. Bxe4 {[%clk 0:03:00.5]} 4... Nf6 {[%clk 0:02:59.8]} 5. Bf3 {[%clk 0:03:00.7]}
5... Nbd7 {[%clk 0:02:59.7]} 6. Ne2 {[%clk 0:02:59.4]} 6... Be7 {[%clk
0:02:59.5]} 7. O-O {[%clk 0:02:59.3]} 7... O-O {[%clk 0:03:00.1]} 8. Ng3 {[%clk
0:02:59.8]} 8... c5 {[%clk 0:02:59.7]} 9. dxc5 {[%clk 0:02:52.3]} 9... Nxc5
{[%clk 0:02:55.8]} 10. Qe2 {[%clk 0:02:50.1]} 10... Qc7 {[%clk 0:02:54.6]} 11.
Nc3 {[%clk 0:02:49.2]} 11... a6 {[%clk 0:02:53.7]} 12. Nge4 {[%clk 0:02:47.3]}
12... Ncxe4 {[%clk 0:02:50.7]} 13. Nxe4 {[%clk 0:02:48.2]} 13... Bd7 {[%clk
0:02:39.4]} 14. Bg5 {[%clk 0:02:43.4]} 14... Bc6 {[%clk 0:02:39.3]} 15. Nxf6+
{[%clk 0:02:41.6]} 15... Bxf6 {[%clk 0:02:39]} 16. Bxf6 {[%clk 0:02:41.9]} 16...
gxf6 {[%clk 0:02:39.5]} 17. c3 {[%clk 0:02:38.7]} 17... Kh8 {[%clk 0:02:37.8]}
18. g3 {[%clk 0:02:37.6]} 18... Rg8 {[%clk 0:02:36.5]} 19. Rad1 {[%clk
0:02:36.5]} 19... Rg7 {[%clk 0:02:31.6]} 20. Rfe1 {[%clk 0:02:34.4]} 20... Rag8
{[%clk 0:02:31.1]} 21. Bxc6 {[%clk 0:02:33.7]} 21... Qxc6 {[%clk 0:02:30.8]} 22.
Rd3 {[%clk 0:02:32.7]} 22... f5 {[%clk 0:02:30.6]} 23. Qe5 {[%clk 0:02:29.4]}
23... h5 {[%clk 0:02:24.9]} 24. Red1 {[%clk 0:02:23.2]} 24... h4 {[%clk
0:02:18.3]} 25. Rd4 {[%clk 0:02:22.4]} 25... Rf8 {[%clk 0:02:05.1]} 26. Rxh4+
{[%clk 0:02:20.8]} 26... Kg8 {[%clk 0:02:05.4]} 27. Qf4 {[%clk 0:02:08.9]} 27...
Rg6 {[%clk 0:01:54.3]} 28. Qd4 {[%clk 0:02:07.9]} 28... f6 {[%clk 0:01:49.7]}
29. Qd7 {[%clk 0:02:04.7]} 29... Qxd7 {[%clk 0:01:38]} 30. Rxd7 {[%clk
0:02:05.6]} 30... Rg7 {[%clk 0:01:38.5]} 31. Rhd4 {[%clk 0:02:02.4]} 31... Rff7
{[%clk 0:01:37.7]} 32. Rd8+ {[%clk 0:01:57.4]} 32... Kh7 {[%clk 0:01:37]} 33.
R4d6 {[%clk 0:01:57.7]} 33... e5 {[%clk 0:01:36.4]} 34. Re6 {[%clk 0:01:56.3]}
34... f4 {[%clk 0:01:35.2]} 35. Rdd6 {[%clk 0:01:55.6]} 35... fxg3 {[%clk
0:01:33]} 36. hxg3 {[%clk 0:01:56.5]} 36... Rg6 {[%clk 0:01:30.9]} 37. Rb6
{[%clk 0:01:56.1]} 37... Kg7 {[%clk 0:01:26.5]} 38. a4 {[%clk 0:01:55.8]} 38...
Rg5 {[%clk 0:01:08.2]} 39. a5 {[%clk 0:01:54.5]} 39... Kg6 {[%clk 0:01:08.5]}
40. Kg2 {[%clk 0:01:52.7]} 40... Kf5 {[%clk 0:01:08.6]} 41. Re8 {[%clk 0:01:47]}
41... Ke4 {[%clk 0:00:58.7]} 42. Rb8 {[%clk 0:01:45.9]} 42... Rgg7 {[%clk
0:00:58.2]} 43. Rd8 {[%clk 0:01:45]} 43... Rd7 {[%clk 0:00:51.5]} 44. Rxd7
{[%clk 0:01:43.9]} 44... Rxd7 {[%clk 0:00:50.9]} 45. Rxf6 {[%clk 0:01:44.4]}
45... Rd5 {[%clk 0:00:50]} 46. Rb6 {[%clk 0:01:43.7]} 46... Rxa5 {[%clk
0:00:50]} 47. Rxb7 {[%clk 0:01:44]} 47... Ra2 {[%clk 0:00:50.1]} 48. g4 {[%clk
0:01:41]} 48... a5 {[%clk 0:00:49.2]} 49. Kg3 {[%clk 0:01:40]} 49... a4 {[%clk
0:00:48]} 50. f3+ {[%clk 0:01:40.1]} 50... Kd5 {[%clk 0:00:45.6]} 51. g5 {[%clk
0:01:39.8]} 51... a3 {[%clk 0:00:45.9]} 52. bxa3 {[%clk 0:01:36.6]} 52... Rxa3
{[%clk 0:00:45.7]} 53. Rc7 {[%clk 0:01:34.7]} 53... Kd6 {[%clk 0:00:45.4]} 54.
Rc8 {[%clk 0:01:33.9]} 54... Ke6 {[%clk 0:00:43.5]} 55. Kg4 {[%clk 0:01:32.9]}
55... Ra1 {[%clk 0:00:42.1]} 56. Rc6+ {[%clk 0:01:32.7]} 56... Kd5 {[%clk
0:00:40.6]} 57. Rc8 {[%clk 0:01:32.5]} 57... Rf1 {[%clk 0:00:39.7]} 58. g6
{[%clk 0:01:29.8]} 58... e4 {[%clk 0:00:35.1]} 59. fxe4+ {[%clk 0:01:28.7]}
59... Kxe4 {[%clk 0:00:35]} 60. Kg5 {[%clk 0:01:27]} 60... Ke5 {[%clk
0:00:32.1]} 61. Re8+ {[%clk 0:01:24.9]} 61... Kd6 {[%clk 0:00:30.5]} 62. g7
{[%clk 0:01:25.3]} 1-0

[Event "*** Titled Tuesday Blitz"]
[Site "Chess.com"]
[Date "2021.02.09"]
[Round "2"]
[White "GameOverBro"]
[Black "bennyficial"]
[Result "1-0"]
[WhiteElo "2425"]
[BlackElo "2195"]
[TimeControl "180+1"]
[EndTime "10:17:54 PST"]
[Termination "GameOverBro won by checkmate"]

1. e4 {[%clk 0:03:00.9]} 1... c5 {[%clk 0:02:59.9]} 2. Ne2 {[%clk 0:03:01]} 2...
Nc6 {[%clk 0:03:00]} 3. Nbc3 {[%clk 0:03:00.6]} 3... e5 {[%clk 0:02:56.9]} 4.
Ng3 {[%clk 0:03:00]} 4... Nf6 {[%clk 0:02:53.5]} 5. Bc4 {[%clk 0:03:00.5]} 5...
Be7 {[%clk 0:02:49.3]} 6. d3 {[%clk 0:03:00.7]} 6... a6 {[%clk 0:02:47.5]} 7. a4
{[%clk 0:02:58.7]} 7... d6 {[%clk 0:02:44.4]} 8. f4 {[%clk 0:02:58.8]} 8... Bg4
{[%clk 0:02:43.2]} 9. Qd2 {[%clk 0:02:58.9]} 9... Nd4 {[%clk 0:02:40]} 10. O-O
{[%clk 0:02:52.8]} 10... exf4 {[%clk 0:02:21.2]} 11. Rxf4 {[%clk 0:02:42.8]}
11... Be6 {[%clk 0:02:17.5]} 12. h3 {[%clk 0:02:26.9]} 12... Bxc4 {[%clk
0:02:15.6]} 13. dxc4 {[%clk 0:02:27.8]} 13... O-O {[%clk 0:02:13.2]} 14. Rf1
{[%clk 0:02:15.7]} 14... b6 {[%clk 0:02:12.4]} 15. Qf2 {[%clk 0:02:10]} 15...
Rb8 {[%clk 0:02:10.8]} 16. Be3 {[%clk 0:02:09.7]} 16... Nc6 {[%clk 0:02:02.2]}
17. Nf5 {[%clk 0:02:07.8]} 17... Ne5 {[%clk 0:02:00.4]} 18. b3 {[%clk
0:02:03.7]} 18... b5 {[%clk 0:01:52.4]} 19. cxb5 {[%clk 0:02:02.1]} 19... axb5
{[%clk 0:01:52.8]} 20. Bg5 {[%clk 0:01:59.3]} 20... Ned7 {[%clk 0:01:22.1]} 21.
axb5 {[%clk 0:01:56.2]} 21... h6 {[%clk 0:01:07.2]} 22. Bh4 {[%clk 0:01:46.9]}
22... d5 {[%clk 0:01:02]} 23. Nxe7+ {[%clk 0:01:44]} 23... Qxe7 {[%clk
0:01:01.9]} 24. Nxd5 {[%clk 0:01:44.2]} 24... Qxe4 {[%clk 0:00:57.5]} 25. Nxf6+
{[%clk 0:01:44.3]} 25... Nxf6 {[%clk 0:00:55]} 26. Bxf6 {[%clk 0:01:45]} 26...
gxf6 {[%clk 0:00:54.1]} 27. Qxf6 {[%clk 0:01:34.3]} 27... Qd4+ {[%clk
0:00:50.3]} 28. Kh1 {[%clk 0:01:28]} 28... Qxf6 {[%clk 0:00:47.8]} 29. Rxf6
{[%clk 0:01:28]} 29... Rxb5 {[%clk 0:00:48.6]} 30. Rxh6 {[%clk 0:01:26.8]} 30...
Kg7 {[%clk 0:00:49.2]} 31. Rc6 {[%clk 0:01:25.9]} 31... Re8 {[%clk 0:00:49.1]}
32. Rf1 {[%clk 0:01:18.8]} 32... Re2 {[%clk 0:00:43.2]} 33. Rc7 {[%clk 0:01:09]}
33... Rxc2 {[%clk 0:00:43.4]} 34. Rcxf7+ {[%clk 0:01:05.3]} 34... Kg6 {[%clk
0:00:43.9]} 35. R1f6+ {[%clk 0:01:00.3]} 35... Kg5 {[%clk 0:00:43.8]} 36. Rf5+
{[%clk 0:00:56.9]} 36... Kg6 {[%clk 0:00:43.7]} 37. R5f6+ {[%clk 0:00:52.3]}
37... Kg5 {[%clk 0:00:43.6]} 38. Rf4 {[%clk 0:00:51.7]} 38... Rxb3 {[%clk
0:00:40.1]} 39. Rg4+ {[%clk 0:00:50.4]} 39... Kh6 {[%clk 0:00:40]} 40. Rf8
{[%clk 0:00:49.6]} 40... Kh7 {[%clk 0:00:34.2]} 41. Rf5 {[%clk 0:00:44.4]} 41...
Kh6 {[%clk 0:00:34.4]} 42. Kh2 {[%clk 0:00:41.3]} 42... Rb6 {[%clk 0:00:30.6]}
43. Rf8 {[%clk 0:00:38.8]} 43... Kh7 {[%clk 0:00:29.8]} 44. Rf7+ {[%clk
0:00:37.9]} 44... Kh6 {[%clk 0:00:29.9]} 45. Rf3 {[%clk 0:00:31.1]} 45... c4
{[%clk 0:00:29.4]} 46. Rfg3 {[%clk 0:00:30.9]} 46... c3 {[%clk 0:00:27.5]} 47.
Rh4# {[%clk 0:00:30.7]} 1-0

[Event "*** Titled Tuesday Blitz"]
[Site "Chess.com"]
[Date "2021.02.09"]
[Round "2"]
[White "DrVelja"]
[Black "ErikBlomqvist"]
[Result "1-0"]
[WhiteElo "2829"]
[BlackElo "2515"]
[TimeControl "180+1"]
[EndTime "10:17:58 PST"]
[Termination "DrVelja won by resignation"]

1. g3 {[%clk 0:02:59.8]} 1... c5 {[%clk 0:02:58.5]} 2. Bg2 {[%clk 0:02:59.4]}
2... Nc6 {[%clk 0:02:59.2]} 3. b3 {[%clk 0:02:59.6]} 3... e5 {[%clk 0:02:44]} 4.
c4 {[%clk 0:02:58.9]} 4... g6 {[%clk 0:02:42.9]} 5. Nc3 {[%clk 0:02:58.9]} 5...
Bg7 {[%clk 0:02:43.1]} 6. Bb2 {[%clk 0:02:58.5]} 6... Nge7 {[%clk 0:02:42.9]} 7.
d3 {[%clk 0:02:54.6]} 7... d6 {[%clk 0:02:42.6]} 8. Nf3 {[%clk 0:02:54.8]} 8...
O-O {[%clk 0:02:42.5]} 9. O-O {[%clk 0:02:55]} 9... h6 {[%clk 0:02:38.1]} 10.
Nd2 {[%clk 0:02:51.6]} 10... f5 {[%clk 0:02:33]} 11. Nd5 {[%clk 0:02:51.2]}
11... Nxd5 {[%clk 0:02:24.5]} 12. cxd5 {[%clk 0:02:52.1]} 12... Ne7 {[%clk
0:02:16.3]} 13. a3 {[%clk 0:02:49.7]} 13... a5 {[%clk 0:02:02.2]} 14. a4 {[%clk
0:02:39]} 14... g5 {[%clk 0:02:00.8]} 15. Nc4 {[%clk 0:02:38]} 15... b6 {[%clk
0:01:47.1]} 16. f4 {[%clk 0:02:19.9]} 16... exf4 {[%clk 0:01:44.3]} 17. Bxg7
{[%clk 0:02:20.8]} 17... Kxg7 {[%clk 0:01:44]} 18. gxf4 {[%clk 0:02:21.7]} 18...
Ng6 {[%clk 0:01:30.5]} 19. e3 {[%clk 0:01:36.2]} 19... Rb8 {[%clk 0:01:25.3]}
20. Qd2 {[%clk 0:01:29.8]} 20... Qf6 {[%clk 0:01:19.3]} 21. Rae1 {[%clk
0:00:57.2]} 21... Bd7 {[%clk 0:01:08.5]} 22. Bh3 {[%clk 0:00:52.2]} 22... b5
{[%clk 0:00:34.7]} 23. axb5 {[%clk 0:00:50.3]} 23... Rxb5 {[%clk 0:00:33.8]} 24.
fxg5 {[%clk 0:00:46.3]} 24... hxg5 {[%clk 0:00:32.6]} 25. e4 {[%clk 0:00:46.2]}
25... Nf4 {[%clk 0:00:13.8]} 26. Rxf4 {[%clk 0:00:42.7]} 26... gxf4 {[%clk
0:00:13.3]} 27. Qxf4 {[%clk 0:00:43.6]} 27... Rxb3 {[%clk 0:00:12.4]} 28. Nxd6
{[%clk 0:00:42.3]} 28... Rxd3 {[%clk 0:00:11.6]} 29. Bxf5 {[%clk 0:00:42.5]}
29... Rh8 {[%clk 0:00:03.1]} 30. Qg4+ {[%clk 0:00:36.6]} 30... Kf8 {[%clk
0:00:03.4]} 31. e5 {[%clk 0:00:31.2]} 31... Qh4 {[%clk 0:00:02.1]} 32. Qxh4
{[%clk 0:00:28.6]} 32... Rxh4 {[%clk 0:00:03]} 33. Bxd3 {[%clk 0:00:29.3]} 1-0

[Event "*** Titled Tuesday Blitz"]
[Site "Chess.com"]
[Date "2021.02.09"]
[Round "2"]
[White "ecwinslow"]
[Black "m_ezat"]
[Result "0-1"]
[WhiteElo "2253"]
[BlackElo "2546"]
[TimeControl "180+1"]
[EndTime "10:17:58 PST"]
[Termination "m_ezat won by resignation"]

1. e4 {[%clk 0:03:00.9]} 1... c6 {[%clk 0:02:59]} 2. d4 {[%clk 0:02:59.6]} 2...
d5 {[%clk 0:02:59.4]} 3. exd5 {[%clk 0:03:00.1]} 3... cxd5 {[%clk 0:02:59]} 4.
c4 {[%clk 0:03:00.7]} 4... Nf6 {[%clk 0:02:58.8]} 5. Nc3 {[%clk 0:03:00.7]} 5...
g6 {[%clk 0:02:58.7]} 6. Qb3 {[%clk 0:02:59.8]} 6... Bg7 {[%clk 0:02:58.5]} 7.
cxd5 {[%clk 0:02:59.3]} 7... O-O {[%clk 0:02:58.6]} 8. Be2 {[%clk 0:02:53.7]}
8... Na6 {[%clk 0:02:58.8]} 9. Bf3 {[%clk 0:02:51.2]} 9... Qb6 {[%clk
0:02:58.8]} 10. Qxb6 {[%clk 0:02:26.2]} 10... axb6 {[%clk 0:02:51.9]} 11. Nge2
{[%clk 0:02:25.3]} 11... Nb4 {[%clk 0:02:51.9]} 12. O-O {[%clk 0:02:23]} 12...
Rd8 {[%clk 0:02:52]} 13. Bg5 {[%clk 0:02:15.3]} 13... Nbxd5 {[%clk 0:02:30.2]}
14. Nxd5 {[%clk 0:02:10.7]} 14... Nxd5 {[%clk 0:02:30.3]} 15. Bxd5 {[%clk
0:02:01.7]} 15... Rxd5 {[%clk 0:02:30]} 16. Bxe7 {[%clk 0:02:02.3]} 16... Bg4
{[%clk 0:02:29.4]} 17. f3 {[%clk 0:02:01.1]} 17... Re8 {[%clk 0:02:29]} 18. Nf4
{[%clk 0:01:20.1]} 18... Rxd4 {[%clk 0:02:20.2]} 19. Ba3 {[%clk 0:01:06.2]}
19... Rxf4 {[%clk 0:01:54.6]} 20. fxg4 {[%clk 0:01:05.8]} 20... Rxg4 {[%clk
0:01:55.2]} 21. Rad1 {[%clk 0:00:59]} 21... Rd4 {[%clk 0:01:45.1]} 22. Kf2
{[%clk 0:00:48]} 22... h5 {[%clk 0:01:41.4]} 23. Rfe1 {[%clk 0:00:45.7]} 23...
Rxe1 {[%clk 0:01:33.4]} 24. Kxe1 {[%clk 0:00:45.4]} 24... Rxd1+ {[%clk
0:01:28.5]} 25. Kxd1 {[%clk 0:00:45.3]} 25... Bf8 {[%clk 0:01:29.1]} 26. b4
{[%clk 0:00:43.2]} 26... b5 {[%clk 0:01:28.7]} 27. Kc2 {[%clk 0:00:43.1]} 27...
Bd6 {[%clk 0:01:28.6]} 28. h3 {[%clk 0:00:42.8]} 28... f5 {[%clk 0:01:26.9]} 29.
Kd3 {[%clk 0:00:42.7]} 29... Kf7 {[%clk 0:01:27.1]} 30. Kc3 {[%clk 0:00:39.1]}
30... Ke6 {[%clk 0:01:27.1]} 31. Bc1 {[%clk 0:00:38.7]} 31... Kd5 {[%clk
0:01:26.6]} 32. a3 {[%clk 0:00:27]} 32... Ke4 {[%clk 0:01:25.9]} 33. Bg5 {[%clk
0:00:22.5]} 33... Be5+ {[%clk 0:01:25.6]} 34. Kc2 {[%clk 0:00:21.2]} 34... Bf4
{[%clk 0:01:18.9]} 35. Be7 {[%clk 0:00:19.2]} 35... g5 {[%clk 0:01:16.6]} 36.
Kc3 {[%clk 0:00:17.2]} 36... g4 {[%clk 0:01:15.7]} 37. hxg4 {[%clk 0:00:16.5]}
37... hxg4 {[%clk 0:01:13.8]} 38. Bd8 {[%clk 0:00:14.5]} 38... Bc1 {[%clk
0:01:13.3]} 39. Kb3 {[%clk 0:00:13]} 39... f4 {[%clk 0:01:13]} 40. Bc7 {[%clk
0:00:12.3]} 40... f3 {[%clk 0:01:11.4]} 41. gxf3+ {[%clk 0:00:10.5]} 41... gxf3
{[%clk 0:01:12]} 42. Bg3 {[%clk 0:00:09.1]} 42... Be3 {[%clk 0:01:11.6]} 43. a4
{[%clk 0:00:08.1]} 43... bxa4+ {[%clk 0:01:00.3]} 44. Kxa4 {[%clk 0:00:07.7]}
44... f2 {[%clk 0:01:00.7]} 45. Bxf2 {[%clk 0:00:08.3]} 45... Bxf2 {[%clk
0:01:01.2]} 46. b5 {[%clk 0:00:07.3]} 46... Kd5 {[%clk 0:01:00]} 47. Kb4 {[%clk
0:00:07.7]} 47... Bb6 {[%clk 0:01:00.2]} 48. Kb3 {[%clk 0:00:07.4]} 48... Kc5
{[%clk 0:00:59.8]} 49. Ka2 {[%clk 0:00:07.5]} 49... Kxb5 {[%clk 0:00:59.5]} 50.
Kb3 {[%clk 0:00:07.6]} 50... Kc5 {[%clk 0:00:58.9]} 0-1